Workbook

Sheet 축산정책사업비목록
A1: 2025년 한우분야 지원사업 내역
A4: 연번 | B4: 사업명 | C4: 사업량 | D4: 단가 (천원) | E4: 사업비(천원) | H4: 신청축종 | I4: 기타사항
E5: 계 | F5: 보조 | G5: 자부담
A6: 계 | B6: =COUNTA(B7:B14) -> 8 | E6: =SUM(E7:E14) -> 667,200 | F6: =SUM(F7:F14) -> 559,080 | G6: =SUM(G7:G14) -> 108,120
A7: 1 | B7: 우량한우암소 장려금 지원 | C7: 140두 | D7: 500 | E7: =F7 -> 70,000 | F7: 70,000 | G7: 0 | H7: 한우농가 | J7: 축산물이력제 상 12개월 이상 보유한 농가, 연 1회 신청
A8: 2 | B8: 한우 암소 사료 첨가 영양제 지원 | C8: 3,000포 | D8: 40 | E8: =F8+G8 -> 120,000 | F8: 60,000 | G8: 60,000 | H8: 한우농가 | J8: 축산물 이력제 농장별 사육개체현황 확인
A9: 3 | B9: 한우농가 생산성 향상 미네랄제제 지원 | C9: 2,480포 | D9: 20 | E9: =F9+G9 -> 49,600 | F9: =2480*20/2 -> 24,800 | G9: =2480*20/2 -> 24,800 | H9: 한우농가 | J9: 축산물 이력제 농장별 사육개체현황 확인
A10: 4 | B10: 한우 등록우 인공수정료 지원 | C10: 10,000두 | D10: 20 | E10: =F10 -> 200,000 | F10: 200,000 | G10: 0 | H10: 한우농가 | J10: 축협신청 - 농가 : 혈통등록우 1만원/두, 고등등록우 2만원/두 - 수정사(수의사) 및 자가수정농가 : 1만원/두
A11: 5 | B11: 경북한우 암소능력 개량사업(4종) | C11: 4종 | D11: 13,308종 | E11: =F11 -> 130,400 | F11: =27600+88000+13200+1600 -> 130,400 | G11: 0 | H11: 한우농가 | J11: 축협신청
A12: 6 | B12: 한우암소 유전체분석 지원 | C12: 280두 | D12: 90 | E12: =F12+G12 -> 25,200 | F12: =280*90*0.9 -> 22,680 | G12: =280*90*0.1 -> 2,520 | H12: 한우농가 | J12: 번식 전업농 또는 암소 30두 이상 사육농가 농가별 최소 20두 이상 분석(20두 미만 불가)
A13: 7 | B13: 비육용 암소시장 육성사업 지원 | C13: 520두 | D13: 100 | E13: =F13+G13 -> 52,000 | F13: 31,200 | G13: =520*100*0.4 -> 20,800 | H13: 한우농가 | J13: 시술 당시 만 14개월령 이하이면서 25.1.1.이후 난소 결찰·적출시술을 한 한우 암소
A14: 8 | B14: 한우 수송아지 거세 지원 | C14: 1,000두 | D14: 20 | E14: =F14 -> 20,000 | F14: 20,000 | G14: 0 | H14: 한우농가 | J14: 농가당 최대 20두, 5~8개월령 거세한 한우 송아지, 선착순 시행

Sheet 축산정사업비목록2-2 (hidden)
A1: 2020년 축산정책분야 지원사업 내역
A4: 연번 | B4: 사업명 | C4: 사업량 | D4: 단가(천원) | E4: 사업비(천원) | H4: 신청축종 | I4: 제외대상 | J4: 기타사항
E5: 계 | F5: 보조 | G5: 자부담
A6: 계 | B6: =COUNTA(B7:B7) -> 1
A7: 1 | B7: 한우번식능력개선제 지원 | C7: 6,600개 | D7: 30 | E7: 198,000 | F7: 99,000 | G7: 99,000 | H7: 한우 번식우 농가 | I7: 축산업 미등록 농가 | J7: 읍면에서 대상자 선정

Sheet 돼지액상정액 (hidden)
A1: 2020년도 돼지 액상정액 지원사업 신청내역
A3: 예천군수 귀하 | H3: 000읍면장
A4: 순번 | B4: 읍면 | C4: 사업신청자 | F4: 사업량 (개) | G4: 사업비(천원) | J4: 비고
C5: 주소(도로명) | D5: 성명 | E5: 사업장 주소 | G5: 계 | H5: 보조 | I5: 자부담
A6: 계 | D6: =COUNTA(D7:D31) -> 1 | F6: =COUNTA(F7:F31) -> 0 | G6: 0 | H6: 0 | I6: 0
A7: 1 | B7: 00면 | C7: 00로 000 | D7: 0
A8: 2
A9: 3
A10: 4
A11: 5
A12: 6
A13: 7
A14: 8
A15: 9
A16: 10
A17: 11
A18: 12
A19: 13
A20: 14
A21: 15
A22: 16
A23: 17
A24: 18
A25: 19
A26: 20
A27: 21
A28: 22
A29: 23
A30: 24
A31: 25

Sheet 모돈생산성제고장비 (hidden)
A1: 2020년도 모돈 생산성 제고 장비 지원사업 신청내역
A3: 예천군수 귀하 | I3: 000읍면장
A4: 순번 | B4: 읍면 | C4: 사업신청자 | F4: 장비명 | G4: 사업량 (대) | H4: 사업비(천원) | K4: 비고
C5: 주소(도로명) | D5: 성명 | E5: 사업장 주소 | H5: 계 | I5: 보조 | J5: 자부담
A6: 계 | D6: =COUNTA(D7:D31) -> 1 | G6: =COUNTA(G7:G31) -> 0 | H6: 0 | I6: 0 | J6: 0
A7: 1 | B7: 00면 | C7: 00로 000 | D7: 0
A8: 2
A9: 3
A10: 4
A11: 5
A12: 6
A13: 7
A14: 8
A15: 9
A16: 10
A17: 11
A18: 12
A19: 13
A20: 14
A21: 15
A22: 16
A23: 17
A24: 18
A25: 19
A26: 20
A27: 21
A28: 22
A29: 23
A30: 24
A31: 25

Sheet 양계자동급수장치및투약기 (hidden)
A1: 2020년도 양계자동급수 장치 및 투약기 지원사업 신청내역
A3: 예천군수 귀하 | J3: 000읍면장
A4: 순번 | B4: 읍면 | C4: 사업신청자 | F4: 기자재종류 | G4: 사육두수 (수) | H4: 사업량 (대) | I4: 사업비(천원) | L4: 비고
C5: 주소(도로명) | D5: 성명 | E5: 사업장 주소 | I5: 계 | J5: 보조 | K5: 자부담
A6: 계 | D6: =COUNTA(D7:D31) -> 1 | H6: =COUNTA(H7:H31) -> 0 | I6: 0 | J6: 0 | K6: 0
A7: 1 | B7: 00면 | C7: 00로 000 | D7: 0
A8: 2
A9: 3
A10: 4
A11: 5
A12: 6
A13: 7
A14: 8
A15: 9
A16: 10
A17: 11
A18: 12
A19: 13
A20: 14
A21: 15
A22: 16
A23: 17
A24: 18
A25: 19
A26: 20
A27: 21
A28: 22
A29: 23
A30: 24
A31: 25

Sheet 염소생산능력개선제 (hidden)
A1: 2020년도 염소 생산능력 개선제 지원사업 신청내역
A3: 예천군수 귀하 | I3: 000읍면장
A4: 순번 | B4: 읍면 | C4: 사업신청자 | F4: 사육두수 (두) | G4: 사업량 (개,포) | H4: 사업비(천원) | K4: 비고
C5: 주소(도로명) | D5: 성명 | E5: 사업장 주소 | H5: 계 | I5: 보조 | J5: 자부담
A6: 계 | D6: =COUNTA(D7:D31) -> 1 | G6: =COUNTA(G7:G31) -> 0 | H6: 0 | I6: 0 | J6: 0
A7: 1 | B7: 00면 | C7: 00로 000 | D7: 0
A8: 2
A9: 3
A10: 4
A11: 5
A12: 6
A13: 7
A14: 8
A15: 9
A16: 10
A17: 11
A18: 12
A19: 13
A20: 14
A21: 15
A22: 16
A23: 17
A24: 18
A25: 19
A26: 20
A27: 21
A28: 22
A29: 23
A30: 24
A31: 25

Sheet 예천한우(참우)등록 (hidden)
A1: 2020년도 예천한우(참우) 등록 지원사업 신청내역
A3: 예천군수 귀하 | H3: 000읍면장
A4: 순번 | B4: 읍면 | C4: 사업신청자 | F4: 사업량 (두) | G4: 사업비(천원) | J4: 비고
C5: 주소(도로명) | D5: 성명 | E5: 사업장 주소 | G5: 계 | H5: 보조 | I5: 자부담
A6: 계 | D6: =COUNTA(D7:D31) -> 1 | F6: =COUNTA(F7:F31) -> 0 | G6: 0 | H6: 0 | I6: 0
A7: 1 | B7: 00면 | C7: 00로 000 | D7: 0
A8: 2
A9: 3
A10: 4
A11: 5
A12: 6
A13: 7
A14: 8
A15: 9
A16: 10
A17: 11
A18: 12
A19: 13
A20: 14
A21: 15
A22: 16
A23: 17
A24: 18
A25: 19
A26: 20
A27: 21
A28: 22
A29: 23
A30: 24
A31: 25

Sheet 이유자돈생산성제고 장비 (hidden)
A1: 2020년도 이유자돈 생산성 제고 장비 지원사업 신청내역
A3: 예천군수 귀하 | H3: 000읍면장
A4: 순번 | B4: 읍면 | C4: 사업신청자 | F4: 사업량 (대) | G4: 사업비(천원) | J4: 비고
C5: 주소(도로명) | D5: 성명 | E5: 사업장 주소 | G5: 계 | H5: 보조 | I5: 자부담
A6: 계 | D6: =COUNTA(D7:D31) -> 1 | F6: =COUNTA(F7:F31) -> 0 | G6: 0 | H6: 0 | I6: 0
A7: 1 | B7: 00면 | C7: 00로 000 | D7: 0
A8: 2
A9: 3
A10: 4
A11: 5
A12: 6
A13: 7
A14: 8
A15: 9
A16: 10
A17: 11
A18: 12
A19: 13
A20: 14
A21: 15
A22: 16
A23: 17
A24: 18
A25: 19
A26: 20
A27: 21
A28: 22
A29: 23
A30: 24
A31: 25

Sheet 젖소 유질개선제 (hidden)
A1: 2020년도 젖소 유질개선제 지원사업 신청내역
A3: 예천군수 귀하 | I3: 000읍면장
A4: 순번 | B4: 읍면 | C4: 사업신청자 | F4: 사육두수 (두) | G4: 사업량 (포) | H4: 사업비(천원) | K4: 비고
C5: 주소(도로명) | D5: 성명 | E5: 사업장 주소 | H5: 계 | I5: 보조 | J5: 자부담
A6: 계 | D6: =COUNTA(D7:D31) -> 1 | G6: =COUNTA(G7:G31) -> 0 | H6: 0 | I6: 0 | J6: 0
A7: 1 | B7: 00면 | C7: 00로 000 | D7: 0
A8: 2
A9: 3
A10: 4
A11: 5
A12: 6
A13: 7
A14: 8
A15: 9
A16: 10
A17: 11
A18: 12
A19: 13
A20: 14
A21: 15
A22: 16
A23: 17
A24: 18
A25: 19
A26: 20
A27: 21
A28: 22
A29: 23
A30: 24
A31: 25

Sheet 우량한우암소
A1: 2025년도 우량한우암소 장려금 지원사업 장려금 서식(변경 금지)
A3: 순번 | B3: 읍면 | C3: 대상자 | F3: 지급두수(두) | O3: 지급금액(천원) | X3: 계좌번호 | Y3: 은행명 | Z3: 주민등록번호 | AA3: 비고
C4: 주소 | D4: 성명 | E4: 사업장 주소 | F4: 합계 | I4: 보유장려금 | L4: 생산장려금 | O4: 합계 | R4: 보유장려금 | U4: 생산장려금
F5: 소계 | G5: 우량 | H5: 초우량 | I5: 소계 | J5: 우량 | K5: 초우량 | L5: 소계 | M5: 우량 | N5: 초우량 | O5: 소계 | P5: 우량 | Q5: 초우량 | R5: 소계 | S5: 우량 | T5: 초우량 | U5: 소계 | V5: 우량 | W5: 초우량
A6: 계 | D6: =COUNTA(D7:D26) -> 0 | F6: =SUM(F7:F26) -> 0 | G6: 0 | H6: 0 | I6: 0 | J6: 0 | K6: 0 | L6: 0 | M6: 0 | N6: 0 | O6: 0 | P6: 0 | Q6: 0 | R6: 0 | S6: 0 | T6: 0 | U6: 0 | V6: 0 | W6: 0
A7: 1 | F7: =I7+L7 -> 0 | G7: 0 | H7: 0 | I7: =J7+K7 -> 0 | K7: 0 | L7: =M7+N7 -> 0 | N7: 0 | O7: =R7+U7 -> 0 | P7: =S7+V7 -> 0 | Q7: =T7+W7 -> 0 | R7: =S7+T7 -> 0 | T7: 0 | U7: =V7+W7 -> 0 | W7: 0
A8: 2 | F8: 0 | G8: 0 | H8: 0 | I8: 0 | K8: 0 | L8: =M8+N8 -> 0 | N8: 0 | O8: =R8+U8 -> 0 | P8: 0 | Q8: 0 | R8: 0 | T8: 0 | U8: 0 | W8: 0
A9: 3 | F9: 0 | G9: 0 | H9: 0 | I9: 0 | K9: 0 | L9: 0 | N9: 0 | O9: 0 | P9: 0 | Q9: 0 | R9: 0 | T9: 0 | U9: 0 | W9: 0
A10: 4 | F10: 0 | G10: 0 | H10: 0 | I10: 0 | K10: 0 | L10: 0 | N10: 0 | O10: 0 | P10: 0 | Q10: 0 | R10: 0 | T10: 0 | U10: 0 | W10: 0
A11: 5 | F11: 0 | G11: 0 | H11: 0 | I11: 0 | K11: 0 | L11: 0 | N11: 0 | O11: 0 | P11: 0 | Q11: 0 | R11: 0 | T11: 0 | U11: 0 | W11: 0
A12: 6 | F12: 0 | G12: 0 | H12: 0 | I12: 0 | K12: 0 | L12: 0 | N12: 0 | O12: 0 | P12: 0 | Q12: 0 | R12: 0 | T12: 0 | U12: 0 | W12: 0
A13: 7 | F13: 0 | G13: 0 | H13: 0 | I13: 0 | K13: 0 | L13: 0 | N13: 0 | O13: 0 | P13: 0 | Q13: 0 | R13: 0 | T13: 0 | U13: 0 | W13: 0
A14: 8 | F14: 0 | G14: 0 | H14: 0 | I14: 0 | K14: 0 | L14: 0 | N14: 0 | O14: 0 | P14: 0 | Q14: 0 | R14: 0 | T14: 0 | U14: 0 | W14: 0
A15: 9 | F15: 0 | G15: 0 | H15: 0 | I15: 0 | K15: 0 | L15: 0 | N15: 0 | O15: 0 | P15: 0 | Q15: 0 | R15: 0 | T15: 0 | U15: 0 | W15: 0
A16: 10 | F16: 0 | G16: 0 | H16: 0 | I16: 0 | K16: 0 | L16: 0 | N16: 0 | O16: 0 | P16: 0 | Q16: 0 | R16: 0 | T16: 0 | U16: 0 | W16: 0
A17: 11 | F17: 0 | G17: 0 | H17: 0 | I17: 0 | K17: 0 | L17: 0 | N17: 0 | O17: 0 | P17: 0 | Q17: 0 | R17: 0 | T17: 0 | U17: 0 | W17: 0
A18: 12 | F18: 0 | G18: 0 | H18: 0 | I18: 0 | K18: 0 | L18: 0 | N18: 0 | O18: 0 | P18: 0 | Q18: 0 | R18: 0 | T18: 0 | U18: 0 | W18: 0
A19: 13 | F19: 0 | G19: 0 | H19: 0 | I19: 0 | K19: 0 | L19: 0 | N19: 0 | O19: 0 | P19: 0 | Q19: 0 | R19: 0 | T19: 0 | U19: 0 | W19: 0
A20: 14 | F20: 0 | G20: 0 | H20: 0 | I20: 0 | K20: 0 | L20: 0 | N20: 0 | O20: 0 | P20: 0 | Q20: 0 | R20: 0 | T20: 0 | U20: 0 | W20: 0
A21: 15 | F21: 0 | G21: 0 | H21: 0 | I21: 0 | K21: 0 | L21: 0 | N21: 0 | O21: 0 | P21: 0 | Q21: 0 | R21: 0 | T21: 0 | U21: 0 | W21: 0
A22: 16 | F22: 0 | G22: 0 | H22: 0 | I22: 0 | K22: 0 | L22: 0 | N22: 0 | O22: 0 | P22: 0 | Q22: 0 | R22: 0 | T22: 0 | U22: 0 | W22: 0
A23: 17 | F23: =I23+L23 -> 0 | G23: 0 | H23: 0 | I23: 0 | K23: 0 | L23: 0 | N23: 0 | O23: 0 | P23: 0 | Q23: 0 | R23: 0 | T23: 0 | U23: 0 | W23: 0
A24: 18 | F24: 0 | G24: 0 | H24: 0 | I24: 0 | K24: 0 | L24: 0 | N24: 0 | O24: 0 | P24: 0 | Q24: 0 | R24: 0 | T24: 0 | U24: 0 | W24: 0
A25: 19 | F25: 0 | G25: 0 | H25: 0 | I25: 0 | K25: 0 | L25: 0 | N25: 0 | O25: 0 | P25: 0 | Q25: 0 | R25: 0 | T25: 0 | U25: 0 | W25: 0
A26: 20 | F26: 0 | G26: 0 | H26: 0 | I26: 0 | K26: 0 | L26: 0 | N26: 0 | O26: 0 | P26: 0 | Q26: 0 | R26: 0 | T26: 0 | U26: 0 | W26: 0

Sheet 한우 암소 사료 첨가 영양제
A1: 2025년도 한우 암소 사료 첨가 영양제 지원사업 신청내역
A3: 순번 | B3: 읍면 | C3: 사업신청자 | F3: 13개월령이상 암소 두수(두) | G3: 신청량 (포) | H3: 사업비(천원) | K3: 비고
C4: 주소(도로명) | D4: 성명 | E4: 사업장 주소 | H4: 계 | I4: 보조 | J4: 자부담
A5: 계 | D5: =COUNTA(D6:D25) -> 0 | G5: =SUM(G6:G25) -> 0 | H5: =SUM(H6:H25) -> 0 | I5: =SUM(I6:I25) -> 0 | J5: =SUM(J6:J25) -> 0
A6: 1
A7: 2
A8: 3
A9: 4
A10: 5
A11: 6
A12: 7
A13: 8
A14: 9
A15: 10
A16: 11
A17: 12
A18: 13
A19: 14
A20: 15
A21: 16
A22: 17
A23: 18
A24: 19
A25: 20

Sheet 한우농가 생산성 향상 미네랄제제
A1: 2025년도 한우농가 생산성 향상 미네랄제제 지원사업 신청내역
A3: 순번 | B3: 읍면 | C3: 사업신청자 | F3: 사육두수 (두) | G3: 신청량 (포) | H3: 사업비(천원) | K3: 비고
C4: 주소(도로명) | D4: 성명 | E4: 사업장 주소 | H4: 계 | I4: 보조 | J4: 자부담
A5: 계 | D5: =COUNTA(D6:D30) -> 0 | G5: =SUM(G6:G30) -> 0 | H5: =SUM(H6:H30) -> 0 | I5: =SUM(I6:I30) -> 0 | J5: =SUM(J6:J30) -> 0
A6: 1 | H6: =G6*20 -> 0 | I6: =H6*0.5 -> 0 | J6: =I6 -> 0
A7: 2 | H7: =G7*20 -> 0 | I7: =H7*0.5 -> 0 | J7: =I7 -> 0
A8: 3 | H8: 0 | I8: 0 | J8: 0
A9: 4 | H9: 0 | I9: 0 | J9: 0
A10: 5 | H10: 0 | I10: 0 | J10: 0
A11: 6 | H11: 0 | I11: 0 | J11: 0
A12: 7 | H12: 0 | I12: 0 | J12: 0
A13: 8 | H13: 0 | I13: 0 | J13: 0
A14: 9 | H14: 0 | I14: 0 | J14: 0
A15: 10 | H15: 0 | I15: 0 | J15: 0
A16: 11 | H16: 0 | I16: 0 | J16: 0
A17: 12 | H17: 0 | I17: 0 | J17: 0
A18: 13 | H18: 0 | I18: 0 | J18: 0
A19: 14 | H19: 0 | I19: 0 | J19: 0
A20: 15 | H20: 0 | I20: 0 | J20: 0
A21: 16 | H21: 0 | I21: 0 | J21: 0
A22: 17 | H22: 0 | I22: 0 | J22: 0
A23: 18 | H23: 0 | I23: 0 | J23: 0
A24: 19 | H24: 0 | I24: 0 | J24: 0
A25: 20 | H25: 0 | I25: 0 | J25: 0
A26: 21 | H26: 0 | I26: 0 | J26: 0
A27: 22 | H27: 0 | I27: 0 | J27: 0
A28: 23 | H28: 0 | I28: 0 | J28: 0
A29: 24 | H29: 0 | I29: 0 | J29: 0
A30: 25 | H30: =G30*20 -> 0 | I30: =H30*0.5 -> 0 | J30: 0

Sheet 한우 암소 유전체
A1: 2025년도 한우 암소 유전체분석 지원사업 신청내역
A4: 순번 | B4: 읍면 | C4: 사업신청자 | F4: 사육현황(두) | J4: 사업량 (두) | K4: 참여대상 개체번호 | L4: 사업비(천원) | O4: 비고
C5: 주소(도로명) | D5: 성명 | E5: 사업장 주소 | F5: 계 | G5: 암
G6: 15개월령미만 | H6: 15개월령이상 | L6: 계 | M6: 보조 | N6: 자부담
A7: 계 | D7: =COUNTA(D8:D22) -> 0 | L7: =K7*20 -> 0 | M7: =L7*0.5 -> 0 | N7: =M7 -> 0
A8: 1 | F8: =SUM(G8:I8) -> 0 | L8: =K8*20 -> 0 | M8: =L8*0.5 -> 0 | N8: =M8 -> 0
A9: 2 | F9: =SUM(G9:I9) -> 0 | L9: 0 | M9: 0 | N9: 0
A10: 3 | F10: 0 | L10: 0 | M10: 0 | N10: 0
A11: 4 | F11: 0 | L11: 0 | M11: 0 | N11: 0
A12: 5 | F12: 0 | L12: 0 | M12: 0 | N12: 0
A13: 6 | F13: 0 | L13: 0 | M13: 0 | N13: 0
A14: 7 | F14: 0 | L14: 0 | M14: 0 | N14: 0
A15: 8 | F15: 0 | L15: 0 | M15: 0 | N15: 0
A16: 9 | F16: 0 | L16: 0 | M16: 0 | N16: 0
A17: 10 | F17: 0 | L17: 0 | M17: 0 | N17: 0
A18: 11 | F18: 0 | L18: 0 | M18: 0 | N18: 0
A19: 12 | F19: 0 | L19: 0 | M19: 0 | N19: 0
A20: 13 | F20: 0 | L20: 0 | M20: 0 | N20: 0
A21: 14 | F21: 0 | L21: 0 | M21: 0 | N21: 0
A22: 15 | F22: =SUM(G22:I22) -> 0 | L22: 0 | M22: 0 | N22: 0

Sheet 비육용 암소시장 육성사업
A1: 2025년도 비육용 암소시장 육성사업(난소 결찰·적출 시술) 완료내역
A3: 순번 | B3: 읍면 | C3: 사업신청자 | F3: 신청량 (두) | G3: 단가 (천원) | H3: 사업비 (천원) | I3: 계좌번호 | J3: 은행명 | K3: 주민등록번호 | L3: 비고
C4: 주소(도로명) | D4: 성명 | E4: 사업장 주소
A5: 계 | D5: =COUNTA(D6:D20)&"명" -> 0명 | F5: =SUM(F6:F20) -> 0 | H5: =SUM(H6:H20) -> 0
A6: 1 | G6: 100 | H6: =F6*G6*0.6 -> 0
A7: 2 | G7: 100 | H7: =F7*G7*0.6 -> 0
A8: 3 | G8: 100 | H8: 0
A9: 4 | G9: 100 | H9: 0
A10: 5 | G10: 100 | H10: 0
A11: 6 | G11: 100 | H11: 0
A12: 7 | G12: 100 | H12: 0
A13: 8 | G13: 100 | H13: 0
A14: 9 | G14: 100 | H14: 0
A15: 10 | G15: 100 | H15: 0
A16: 11 | G16: 100 | H16: 0
A17: 12 | G17: 100 | H17: 0
A18: 13 | G18: 100 | H18: 0
A19: 14 | G19: 100 | H19: 0
A20: 15 | G20: 100 | H20: =G20*F20*0.6 -> 0

Sheet 한우 수송아지 거세
A1: 2025년도 한우 수송아지 거세 지원사업 완료내역
A3: 순번 | B3: 읍면 | C3: 사업신청자 | F3: 신청량 (두) | G3: 단가 (천원) | H3: 사업비 (천원) | I3: 계좌번호 | J3: 은행명 | K3: 주민등록번호 | L3: 비고
C4: 주소(도로명) | D4: 성명 | E4: 사업장 주소
A5: 계 | D5: =COUNTA(D6:D20)&"명" -> 0명 | F5: =SUM(F6:F20) -> 0 | H5: =SUM(H6:H20) -> 0
A6: 1 | G6: 20 | H6: =F6*G6 -> 0
A7: 2 | G7: 20 | H7: =F7*G7 -> 0
A8: 3 | G8: 20 | H8: 0
A9: 4 | G9: 20 | H9: 0
A10: 5 | G10: 20 | H10: 0
A11: 6 | G11: 20 | H11: 0
A12: 7 | G12: 20 | H12: 0
A13: 8 | G13: 20 | H13: 0
A14: 9 | G14: 20 | H14: 0
A15: 10 | G15: 20 | H15: 0
A16: 11 | G16: 20 | H16: 0
A17: 12 | G17: 20 | H17: 0
A18: 13 | G18: 20 | H18: 0
A19: 14 | G19: 20 | H19: 0
A20: 15 | G20: =G19 -> 20 | H20: =G20*F20 -> 0

Sheet 축사전기관리시설 (hidden)
A1: 2020년도 축사 전기관리시설 지원사업 신청내역
A3: 예천군수 귀하 | I3: 000읍면장
A4: 순번 | B4: 읍면 | C4: 사업신청자 | F4: 사육두수 (두) | G4: 사업량 (개소) | H4: 사업비(천원) | K4: 비고
C5: 주소(도로명) | D5: 성명 | E5: 사업장 주소 | H5: 계 | I5: 보조 | J5: 자부담
A6: 계 | D6: =COUNTA(D7:D31) -> 1 | G6: =COUNTA(G7:G31) -> 0 | H6: 0 | I6: 0 | J6: 0
A7: 1 | B7: 00면 | C7: 00로 000 | D7: 0
A8: 2
A9: 3
A10: 4
A11: 5
A12: 6
A13: 7
A14: 8
A15: 9
A16: 10
A17: 11
A18: 12
A19: 13
A20: 14
A21: 15
A22: 16
A23: 17
A24: 18
A25: 19
A26: 20
A27: 21
A28: 22
A29: 23
A30: 24
A31: 25

Sheet 클링패드및스프링클러 (hidden)
A1: 2020년도 쿨링패드 및 스프링클러 지원사업 신청내역
A3: 예천군수 귀하 | I3: 000읍면장
A4: 순번 | B4: 읍면 | C4: 사업신청자 | F4: 사육두수 (두) | G4: 사업량 (개소) | H4: 사업비(천원) | K4: 비고
C5: 주소(도로명) | D5: 성명 | E5: 사업장 주소 | H5: 계 | I5: 보조 | J5: 자부담
A6: 계 | D6: =COUNTA(D7:D31) -> 1 | G6: =COUNTA(G7:G31) -> 0 | H6: 0 | I6: 0 | J6: 0
A7: 1 | B7: 00면 | C7: 00로 000 | D7: 0
A8: 2
A9: 3
A10: 4
A11: 5
A12: 6
A13: 7
A14: 8
A15: 9
A16: 10
A17: 11
A18: 12
A19: 13
A20: 14
A21: 15
A22: 16
A23: 17
A24: 18
A25: 19
A26: 20
A27: 21
A28: 22
A29: 23
A30: 24
A31: 25

Sheet 폭염피행예방면역강화제 (hidden)
A1: 2020년도 폭염피해 예방 면역강화제 구입 지원사업 신청내역
A3: 예천군수 귀하 | H3: 000읍면장
A4: 순번 | B4: 읍면 | C4: 사업신청자 | F4: 사업량 (포) | G4: 사업비(천원) | J4: 비고
C5: 주소(도로명) | D5: 성명 | E5: 사업장 주소 | G5: 계 | H5: 보조 | I5: 자부담
A6: 계 | D6: =COUNTA(D7:D31) -> 1 | F6: =COUNTA(F7:F31) -> 0 | G6: 0 | H6: 0 | I6: 0
A7: 1 | B7: 00면 | C7: 00로 000 | D7: 0
A8: 2
A9: 3
A10: 4
A11: 5
A12: 6
A13: 7
A14: 8
A15: 9
A16: 10
A17: 11
A18: 12
A19: 13
A20: 14
A21: 15
A22: 16
A23: 17
A24: 18
A25: 19
A26: 20
A27: 21
A28: 22
A29: 23
A30: 24
A31: 25

Sheet 한우미네랄블럭 (hidden)
A1: 2020년도 한우 미네랄블럭 지원사업 신청내역
A3: 예천군수 귀하 | I3: 000읍면장
A4: 순번 | B4: 읍면 | C4: 사업신청자 | F4: 사육두수 (두) | G4: 사업량 (개) | H4: 사업비(천원) | K4: 비고
C5: 주소(도로명) | D5: 성명 | E5: 사업장 주소 | H5: 계 | I5: 보조 | J5: 자부담
A6: 계 | D6: =COUNTA(D7:D31) -> 1 | G6: =COUNTA(G7:G31) -> 0 | H6: 0 | I6: 0 | J6: 0
A7: 1 | B7: 00면 | C7: 00로 000 | D7: 0
A8: 2
A9: 3
A10: 4
A11: 5
A12: 6
A13: 7
A14: 8
A15: 9
A16: 10
A17: 11
A18: 12
A19: 13
A20: 14
A21: 15
A22: 16
A23: 17
A24: 18
A25: 19
A26: 20
A27: 21
A28: 22
A29: 23
A30: 24
A31: 25

Sheet 한우사료자동급이기 (hidden)
A1: 2020년도 한우 사료자동급이기 지원사업 신청내역
A3: 예천군수 귀하 | I3: 000읍면장
A4: 순번 | B4: 읍면 | C4: 사업신청자 | F4: 사육두수 (두) | G4: 사업량 (대) | H4: 사업비(천원) | K4: 비고
C5: 주소(도로명) | D5: 성명 | E5: 사업장 주소 | H5: 계 | I5: 보조 | J5: 자부담
A6: 계 | D6: =COUNTA(D7:D31) -> 1 | G6: =COUNTA(G7:G31) -> 0 | H6: 0 | I6: 0 | J6: 0
A7: 1 | B7: 00면 | C7: 00로 000 | D7: 0
A8: 2
A9: 3
A10: 4
A11: 5
A12: 6
A13: 7
A14: 8
A15: 9
A16: 10
A17: 11
A18: 12
A19: 13
A20: 14
A21: 15
A22: 16
A23: 17
A24: 18
A25: 19
A26: 20
A27: 21
A28: 22
A29: 23
A30: 24
A31: 25

Sheet 한우거세 (hidden)
A1: 2020년도 한우거세 지원사업 신청내역
A3: 예천군수 귀하 | H3: 000읍면장
A4: 순번 | B4: 읍면 | C4: 사업신청자 | F4: 사업량 (두) | G4: 사업비(천원) | J4: 비고
C5: 주소(도로명) | D5: 성명 | E5: 사업장 주소 | G5: 계 | H5: 보조 | I5: 자부담
A6: 계 | D6: =COUNTA(D7:D31) -> 1 | F6: =COUNTA(F7:F31) -> 0 | G6: 0 | H6: 0 | I6: 0
A7: 1 | B7: 00면 | C7: 00로 000 | D7: 0
A8: 2
A9: 3
A10: 4
A11: 5
A12: 6
A13: 7
A14: 8
A15: 9
A16: 10
A17: 11
A18: 12
A19: 13
A20: 14
A21: 15
A22: 16
A23: 17
A24: 18
A25: 19
A26: 20
A27: 21
A28: 22
A29: 23
A30: 24
A31: 25

Sheet 한우등록우인공수정료 (hidden)
A1: 2020년도 한우등록우 인공수정료 지원사업 신청내역
A3: 예천군수 귀하 | H3: 000읍면장
A4: 순번 | B4: 읍면 | C4: 사업신청자 | F4: 사업량 (두) | G4: 사업비(천원) | J4: 비고
C5: 주소(도로명) | D5: 성명 | E5: 사업장 주소 | G5: 계 | H5: 보조 | I5: 자부담
A6: 계 | D6: =COUNTA(D7:D31) -> 1 | F6: =COUNTA(F7:F31) -> 0 | G6: 0 | H6: 0 | I6: 0
A7: 1 | B7: 00면 | C7: 00로 000 | D7: 0
A8: 2
A9: 3
A10: 4
A11: 5
A12: 6
A13: 7
A14: 8
A15: 9
A16: 10
A17: 11
A18: 12
A19: 13
A20: 14
A21: 15
A22: 16
A23: 17
A24: 18
A25: 19
A26: 20
A27: 21
A28: 22
A29: 23
A30: 24
A31: 25

Sheet 한우번식능력개선제 (hidden)
A1: 2020년도 한우번식능력개선제 지원사업 신청내역
A3: 예천군수 귀하 | I3: 000읍면장
A4: 순번 | B4: 읍면 | C4: 사업신청자 | F4: 사육두수 (두) | G4: 사업량 (포,개) | H4: 사업비(천원) | K4: 비고
C5: 주소(도로명) | D5: 성명 | E5: 사업장 주소 | H5: 계 | I5: 보조 | J5: 자부담
A6: 계 | D6: =COUNTA(D7:D31) -> 1 | G6: =COUNTA(G7:G31) -> 0 | H6: 0 | I6: 0 | J6: 0
A7: 1 | B7: 00면 | C7: 00로 000 | D7: 0
A8: 2
A9: 3
A10: 4
A11: 5
A12: 6
A13: 7
A14: 8
A15: 9
A16: 10
A17: 11
A18: 12
A19: 13
A20: 14
A21: 15
A22: 16
A23: 17
A24: 18
A25: 19
A26: 20
A27: 21
A28: 22
A29: 23
A30: 24
A31: 25
